fUST/lending_fUST_20240805
["ID","MTS","AMOUNT","RATE_DAILY","PERIOD"]
[334244162,1722856241697,-535.87,0.00041095,31]
[334244163,1722856241708,-500.0,0.00041095,31]
[334244164,1722856241720,-500.0,0.00041095,31]
[334244165,1722856241730,-500.0,0.00041095,31]
[334244166,1722856241741,-2175.27,0.00041095,31]
[334244167,1722856241751,-934.74,0.00041095,31]
[334244168,1722856241762,-858.35117543,0.00041095,31]
[334244169,1722856241911,-999.9933705,0.00041095,31]
[334244193,1722856243590,-402.3465429,0.00026579,2]
[334244194,1722856243600,-160.54991199,0.00026599,2]
[334244195,1722856243610,-3377.20545407,0.00041095,31]
[334244196,1722856243619,-880.98,0.00041095,31]
[334244197,1722856243629,-2030.39,0.00041095,31]
[334244198,1722856243638,-1840.37,0.00041095,31]
[334244199,1722856243654,-500.0,0.00041095,31]
[334244200,1722856243668,-500.0,0.00041095,31]
[334244201,1722856243678,-500.0,0.00041095,31]
[334244202,1722856243688,-81.10805126,0.00041095,31]
[334244229,1722857293643,5098.10599582,0.00013,2]
[334244231,1722857302782,778.98141005,0.000125,2]
[334244233,1722857311921,5786.70894128,0.00018,30]
[334244236,1722857314196,3884.60274635,0.000139,2]
[334244238,1722857348278,-173.228172,0.00014247,2]
[334244239,1722857348301,-2847.71475529,0.00019999,2]
[334244240,1722857348324,-1108.88728873,0.00019999,2]
[334244241,1722857348346,-300.0,0.00019999,2]
[334244242,1722857348366,-2569.999999,0.0002,2]
[334244243,1722857348387,-1091.50397563,0.0002028,2]
[334244244,1722857348410,-173.228172,0.00020707,2]
[334244245,1722857348431,-449.55214771,0.00020721,2]
[334244246,1722857348451,-951.61482036,0.00020721,2]
[334244247,1722857348472,-194.54850496,0.00020721,2]
[334244248,1722857348499,-816.16582707,0.00020999,2]
[334244249,1722857348528,-337.30968789,0.00021011,2]
[334244250,1722857348548,-269.63517677,0.00021048,2]
[334244251,1722857348570,-266.69783737,0.00021048,2]
[334244252,1722857348593,-266.69783737,0.00021048,2]
[334244253,1722857348616,-420.0,0.00021999,2]
[334244254,1722857348636,-1722.03311382,0.00023,2]
[334244255,1722857348658,-264.88325096,0.00024647,2]
[334244256,1722857348681,-7777.27788344,0.00024648,2]
[334244257,1722857349233,-17112.72211656,0.00024648,2]
[334244258,1722857349256,-2509.84862317,0.00025,30]
[334244259,1722857359160,-328.66752339,0.000249,2]
[334244260,1722857359184,-4301.82600023,0.00025,30]
[334244261,1722857359207,-168.878791,0.00025463,2]
[334244262,1722857359230,-250.0,0.00025648,2]
[334244263,1722857359253,-1978.3651736,0.00025672,2]
[334244264,1722857359284,-2397.7442972,0.00025823,2]
[334244265,1722857359308,-881.47696693,0.00026575,2]
[334244266,1722857359331,-402.3465429,0.00026579,2]
[334244267,1722857359353,-160.54991199,0.00026589,2]
[334244268,1722857359374,-154.59033561,0.0002661,2]
[334244269,1722857359396,-943.03915326,0.00026843,2]
[334244270,1722857359420,-173.228172,0.00027167,2]
[334244271,1722857359441,-649.70503386,0.0002739,2]
[334244272,1722857359477,-875.98795871,0.0002739,2]
[334244273,1722857359500,-249.735164,0.00028121,2]
[334244274,1722857359530,-500.0,0.000285,2]
[334244275,1722857359553,-723.1345264,0.00029219,2]
[334244276,1722857359579,-151.0,0.0003,120]
[334244277,1722857359601,-151.0,0.0003,120]
[334244278,1722857359623,-263.0,0.0003,2]
[334244279,1722857359644,-1000.966417,0.000301,2]
[334244280,1722857359669,-151.0,0.00031671,120]
[334244281,1722857359691,-151.0,0.00032219,120]
[334244282,1722857359715,-151.0,0.00033342,120]
[334244283,1722857359740,-173.228172,0.00033626,2]
[334244284,1722857359763,-276.199822,0.00034281,2]
[334244285,1722857359787,-151.0,0.00034438,120]
[334244286,1722857359813,-251.8913901,0.0003499,4]
[334244287,1722857359837,-15524.52,0.0003499,3]
[334244288,1722857359860,-12937.1,0.0003499,3]
[334244289,1722857359883,-81164.07530716,0.00035,30]
[334244290,1722857359905,-151.0,0.00035014,120]
[334244291,1722857359928,-294.2886399,0.00035789,2]
[334244292,1722857359951,-169.9525106,0.00035789,2]
[334244293,1722857359973,-207.0130742,0.00035789,2]
[334244294,1722857359995,-294.2886399,0.00035789,2]
[334244295,1722857360031,-294.2886399,0.00035789,2]
[334244296,1722857360057,-207.0130742,0.00035789,2]
[334244297,1722857360080,-293.0819861,0.00035789,2]
[334244298,1722857360102,-207.0130742,0.00035789,2]
[334244299,1722857360124,-294.2886399,0.00035789,2]
[334244300,1722857360146,-206.8027535,0.00035789,2]
[334244301,1722857360167,-294.2886399,0.00036611,2]
[334244302,1722857360189,-294.2886399,0.00036611,2]
[334244303,1722857360210,-207.0130742,0.00036611,2]
[334244304,1722857360231,-207.0130742,0.00036611,2]
[334244305,1722857360253,-207.0130742,0.00036611,2]
[334244306,1722857360275,-294.0013233,0.00036611,2]
[334244307,1722857360298,-207.0130742,0.00036611,2]
[334244308,1722857360329,-207.0130742,0.00036611,2]
[334244309,1722857360351,-151.0,0.00036658,120]
[334244310,1722857360373,-151.0,0.00036685,120]
[334244311,1722857360396,-1000.0,0.00037,37]
[334244312,1722857360418,-3246.45367655,0.0003726,31]
[334244313,1722857360441,-151.0,0.00038356,120]
[334244314,1722857371349,154.59033561,0.00026604,2]
[334244319,1722857401103,1019.07776157,0.00016848,2]
[334244320,1722857403731,402.3465429,0.00025,2]
[334244321,1722857407388,160.54991199,0.00022,2]
[334244322,1722857415672,881.47696693,0.0002217,2]
[334244323,1722857420721,250.0,0.00035598,2]
[334244324,1722857423115,165.96158349,0.00026604,2]
[334244355,1722857433685,-150.0,0.00030625,14]
[334244356,1722857433696,-150.0,0.00030625,14]
[334244357,1722857433706,-200.0,0.00030625,14]
[334244358,1722857433720,-151.0,0.00038877,120]
[334244359,1722857433731,-1000.0,0.00039,39]
[334244360,1722857433742,-889.0,0.000398,120]
[334244361,1722857433755,-9336.15,0.000398,120]
[334244362,1722857433764,-200.0,0.0004,2]
[334244363,1722857433774,-500.0,0.0004,7]
[334244364,1722857433784,-500.0,0.0004,7]
[334244365,1722857433794,-500.0,0.0004,7]
[334244366,1722857433804,-500.0,0.0004,7]
[334244367,1722857433814,-500.0,0.0004,7]
[334244368,1722857433824,-500.0,0.0004,7]
[334244369,1722857433835,-500.0,0.0004,7]
[334244370,1722857433845,-500.0,0.0004,7]
[334244371,1722857433855,-175.63959794,0.0004,7]
[334244372,1722857433872,-24778.02267276,0.0004,30]
[334244402,1722857438788,-15236.05718579,0.0004,30]
[334244403,1722857438798,-151.0,0.00040027,120]
[334244404,1722857438808,-173.228172,0.00040086,2]
[334244405,1722857438818,-510.71,0.0004012,31]
[334244406,1722857438828,-10225.15,0.0004053,120]
[334244407,1722857438837,-642.326,0.00040614,2]
[334244408,1722857438847,-5112.574999,0.000407,120]
[334244409,1722857438858,-150.112233,0.000407,8]
[334244410,1722857438874,-150.0,0.00040962,2]
[334244411,1722857438883,-6238.96,0.0004098,3]
[334244412,1722857438892,-503.1668033,0.00040995,2]
[334244413,1722857438902,-2000.0,0.00040995,2]
[334244414,1722857438912,-10959.24423215,0.00040995,5]
[334244415,1722857438921,-10053.48986323,0.00041,30]
[334244416,1722857438931,-10225.15,0.00041,120]
[334244417,1722857438940,-1301.0,0.00041,120]
[334244418,1722857438949,-1000.0,0.00041,41]
[334244419,1722857438959,-600.0,0.00041029,2]
[334244420,1722857438968,-5313.02250689,0.00041043,2]
[334244421,1722857438978,-265.41,0.0004107,120]
[334244422,1722857438988,-150.5,0.0004108,120]
[334244423,1722857438997,-881.61986535,0.00041085,5]
[334244424,1722857439008,-150.5,0.0004109,120]
[334244425,1722857439017,-500.0,0.00041094,31]
[334244426,1722857439027,-301.32719175,0.00041094,31]
[334244427,1722857439036,-118.95545067,0.00041094,31]
[334244428,1722857439930,-381.04454933,0.00041094,31]
[334244430,1722857439941,-500.0,0.00041094,31]
[334244431,1722857439953,-662.732602,0.00041095,15]
[334244440,1722857440271,912.4763458,0.00026604,2]
[334244446,1722857441105,-348.05391924,0.00041095,15]
[334244447,1722857441201,-15950.2914193,0.00041095,15]
[334244449,1722857441211,-5000.0,0.00041095,30]
[334244450,1722857441221,-154.72922386,0.00041095,4]
[334244451,1722857441231,-6419.99731741,0.00041095,4]
[334244452,1722857441241,-1745.11195517,0.00041095,120]
[334244453,1722857441251,-291.01180885,0.00041095,4]
[334244454,1722857441261,-4643.56336291,0.00041095,120]
[334244455,1722857441271,-500.0,0.00041095,31]
[334244456,1722857441281,-325.52924746,0.00041095,3]
[334244457,1722857441290,-500.0,0.00041095,31]
[334244458,1722857441300,-500.0,0.00041095,31]
[334244459,1722857441309,-502.80873224,0.00041095,31]
[334244460,1722857441319,-500.0,0.00041095,31]
[334244461,1722857441328,-506.94191855,0.00041095,31]
[334244462,1722857441338,-500.0,0.00041095,31]
[334244463,1722857441347,-500.0,0.00041095,31]
[334244464,1722857441356,-542.15017006,0.00041095,31]
[334244465,1722857441370,-500.0,0.00041095,31]
[334244466,1722857441380,-500.0,0.00041095,31]
[334244467,1722857441390,-9676.27282309,0.00041095,20]
[334244468,1722857441400,-500.0,0.00041095,31]
[334244469,1722857441411,-500.0,0.00041095,31]
[334244470,1722857441421,-501.44290441,0.00041095,31]
[334244471,1722857441431,-500.0,0.00041095,31]
[334244472,1722857441441,-500.0,0.00041095,31]
[334244473,1722857441452,-520.42360811,0.00041095,31]
[334244474,1722857441461,-500.0,0.00041095,31]
[334244475,1722857441471,-500.0,0.00041095,31]
[334244476,1722857441481,-500.0,0.00041095,31]
[334244477,1722857441491,-500.0,0.00041095,31]
[334244478,1722857441500,-895.69,0.00041095,31]
[334244479,1722857441510,-500.0,0.00041095,31]
[334244480,1722857441520,-191.08169646,0.00041095,31]
[334244481,1722857441529,-500.0,0.00041095,31]
[334244482,1722857441539,-1359.68,0.00041095,31]
[334244483,1722857441549,-500.0,0.00041095,31]
[334244484,1722857441559,-503.1469616,0.00041095,31]
[334244485,1722857441569,-500.0,0.00041095,31]
[334244486,1722857441579,-502.03617777,0.00041095,31]
[334244487,1722857441588,-500.0,0.00041095,31]
[334244488,1722857441599,-500.0,0.00041095,31]
[334244489,1722857441609,-500.0,0.00041095,31]
[334244490,1722857441624,-500.0,0.00041095,31]
[334244491,1722857441633,-500.0,0.00041095,31]
[334244492,1722857441644,-500.0,0.00041095,31]
[334244493,1722857441654,-512.58577606,0.00041095,31]
[334244494,1722857441663,-500.0,0.00041095,31]
[334244495,1722857441673,-500.0,0.00041095,31]
[334244496,1722857441683,-500.0,0.00041095,31]
[334244497,1722857441694,-283.92601512,0.00041095,31]
[334244498,1722857441704,-500.0,0.00041095,31]
[334244499,1722857441714,-631.1,0.00041095,31]
[334244500,1722857441724,-500.0,0.00041095,31]
[334244501,1722857441734,-500.0,0.00041095,31]
[334244502,1722857441745,-500.0,0.00041095,31]
[334244503,1722857441755,-500.0,0.00041095,31]
[334244504,1722857441765,-500.0,0.00041095,31]
[334244505,1722857441775,-500.0,0.00041095,31]
[334244506,1722857441786,-266.13038461,0.00041095,31]
[334244507,1722857442210,195.70656665,0.00014147,2]
[334244518,1722857445899,540.58076781,0.00032247,4]
[334244591,1722857447156,-500.0,0.0004,7]
[334244592,1722857447167,-500.0,0.0004,7]
[334244593,1722857447177,-500.0,0.0004,7]
[334244594,1722857447186,-500.0,0.0004,7]
[334244595,1722857447196,-500.0,0.0004,7]
[334244596,1722857447206,-1000.0,0.00041,41]
[334244597,1722857447216,-9741.09,0.00041085,3]
[334244598,1722857447225,-233.86961539,0.00041095,31]
[334244599,1722857447235,-502.28331278,0.00041095,31]
[334244600,1722857447244,-887.72,0.00041095,31]
[334244601,1722857447254,-500.0,0.00041095,31]
[334244602,1722857447264,-771.86,0.00041095,31]
[334244603,1722857447276,-500.0,0.00041095,31]
[334244604,1722857447286,-500.0,0.00041095,31]
[334244605,1722857447296,-500.0,0.00041095,31]
[334244606,1722857447306,-500.0,0.00041095,31]
[334244607,1722857447315,-500.0,0.00041095,31]
[334244608,1722857447325,-719.7,0.00041095,31]
[334244609,1722857447334,-500.0,0.00041095,31]
[334244610,1722857447344,-500.0,0.00041095,31]
[334244611,1722857447353,-500.0,0.00041095,31]
[334244612,1722857447362,-500.6614948,0.00041095,31]
[334244613,1722857447375,-500.0,0.00041095,31]
[334244614,1722857447384,-849.36,0.00041095,31]
[334244615,1722857447394,-500.0,0.00041095,31]
[334244616,1722857447405,-500.0,0.00041095,31]
[334244617,1722857447415,-806.85,0.00041095,31]
[334244618,1722857447425,-500.0,0.00041095,31]
[334244619,1722857447434,-152.75957297,0.00041095,31]
[334244620,1722857447444,-500.0,0.00041095,31]
[334244621,1722857447454,-1086.89,0.00041095,31]
[334244622,1722857447464,-500.0,0.00041095,31]
[334244623,1722857447474,-500.0,0.00041095,31]
[334244624,1722857447484,-500.0,0.00041095,31]
[334244625,1722857447493,-500.0,0.00041095,31]
[334244626,1722857447503,-910.93,0.00041095,31]
[334244627,1722857447514,-508.08071063,0.00041095,31]
[334244628,1722857447523,-1276.5,0.00041095,31]
[334244629,1722857447533,-505.33,0.00041095,31]
[334244630,1722857447543,-500.0,0.00041095,31]
[334244631,1722857447553,-500.0,0.00041095,31]
[334244632,1722857447563,-500.0,0.00041095,31]
[334244633,1722857447573,-894.21,0.00041095,31]
[334244634,1722857447583,-500.0,0.00041095,31]
[334244635,1722857447593,-500.0,0.00041095,31]
[334244636,1722857447603,-500.0,0.00041095,31]
[334244637,1722857447612,-500.0,0.00041095,31]
[334244638,1722857447629,-556.09,0.00041095,31]
[334244639,1722857447643,-1082.36,0.00041095,31]
[334244640,1722857447654,-500.0,0.00041095,31]
[334244641,1722857447665,-500.0,0.00041095,31]
[334244642,1722857447676,-500.0,0.00041095,31]
[334244643,1722857447685,-500.0,0.00041095,31]
[334244644,1722857447698,-395.97189526,0.00041095,31]
[334244645,1722857447708,-500.0,0.00041095,30]
[334244646,1722857447718,-500.0,0.00041095,31]
[334244647,1722857447728,-500.0,0.00041095,31]
[334244648,1722857447738,-500.0,0.00041095,31]
[334244649,1722857447748,-429.40485957,0.00041095,31]
[334244650,1722857447758,-599.25088958,0.00041095,31]
[334244651,1722857447768,-940.39,0.00041095,31]
[334244652,1722857447778,-500.0,0.00041095,31]
[334244653,1722857447788,-500.0,0.00041095,31]
[334244654,1722857447797,-500.0,0.00041095,31]
[334244655,1722857447806,-500.0,0.00041095,31]
[334244657,1722857447816,-500.0,0.00041095,31]
[334244659,1722857447826,-500.0,0.00041095,31]
[334244660,1722857447836,-496.0,0.00041095,31]
[334244661,1722857447846,-500.0,0.00041095,31]
[334244662,1722857447856,-181.69971456,0.00041095,31]
[334244663,1722857447866,-500.0,0.00041095,31]
[334244664,1722857447876,-1098.73,0.00041095,31]
[334244665,1722857447885,-500.0,0.00041095,7]
[334244666,1722857447894,-500.0,0.00041095,31]
[334244667,1722857447904,-509.15215424,0.00041095,31]
[334244668,1722857447914,-500.0,0.00041095,31]
[334244669,1722857447923,-500.0,0.00041095,31]
[334244670,1722857447932,-500.0,0.00041095,31]
[334244671,1722857447943,-500.0,0.00041095,31]
[334244672,1722857447953,-500.0,0.00041095,31]
[334244673,1722857447963,-502.2640512,0.00041095,31]
[334244674,1722857447972,-200.0,0.00041095,7]
[334244675,1722857447982,-500.0,0.00041095,31]
[334244676,1722857447991,-500.0,0.00041095,31]
[334244677,1722857448001,-530.37,0.00041095,31]
[334244678,1722857448010,-500.0,0.00041095,31]
[334244679,1722857448020,-500.0,0.00041095,31]
[334244680,1722857448030,-500.0,0.00041095,31]
[334244681,1722857448040,-500.0,0.00041095,31]
[334244682,1722857448050,-500.0,0.00041095,31]
[334244683,1722857448059,-500.0,0.00041095,31]
[334244684,1722857448069,-500.0,0.00041095,31]
[334244685,1722857448079,-1336.64,0.00041095,31]
[334244686,1722857448088,-500.0,0.00041095,31]
[334244687,1722857448097,-500.0,0.00041095,31]
[334244688,1722857448107,-500.0,0.00041095,31]
[334244689,1722857448117,-500.0,0.00041095,2]
[334244690,1722857448140,-500.0,0.00041095,31]
[334244691,1722857448150,-500.0,0.00041095,31]
[334244692,1722857448160,-500.0,0.00041095,31]
[334244693,1722857448171,-1374.17,0.00041095,31]
[334244694,1722857448180,-500.0,0.00041095,31]
[334244695,1722857448190,-629.74,0.00041095,31]
[334244696,1722857448200,-500.0,0.00041095,31]
[334244697,1722857448210,-500.0,0.00041095,31]
[334244698,1722857448221,-500.0,0.00041095,31]
[334244699,1722857448231,-500.0,0.00041095,31]
[334244700,1722857448241,-500.0,0.00041095,31]
[334244701,1722857448251,-500.0,0.00041095,31]
[334244702,1722857448261,-500.0,0.00041095,31]
[334244703,1722857448271,-500.0,0.00041095,31]
[334244704,1722857448281,-500.0,0.00041095,31]
[334244705,1722857448293,-519.05,0.00041095,31]
[334244706,1722857448302,-500.0,0.00041095,31]
[334244707,1722857448312,-500.0,0.00041095,31]
[334244708,1722857448321,-669.0,0.00041095,31]
[334244709,1722857448331,-500.0,0.00041095,31]
[334244710,1722857448341,-500.0,0.00041095,31]
[334244711,1722857448351,-223.69320676,0.00041095,31]
[334244712,1722857448360,-500.0,0.00041095,31]
[334244713,1722857448378,-1304.72,0.00041095,120]
[334244714,1722857448389,-500.0,0.00041095,31]
[334244715,1722857448399,-500.0,0.00041095,31]
[334244716,1722857448408,-500.0,0.00041095,31]
[334244717,1722857448418,-500.0,0.00041095,31]
[334244718,1722857448428,-500.0,0.00041095,31]
[334244719,1722857448438,-500.0,0.00041095,31]
[334244720,1722857448448,-500.0,0.00041095,31]
[334244721,1722857448458,-500.0,0.00041095,31]
[334244722,1722857448469,-1164.71,0.00041095,31]
[334244723,1722857448478,-943.44,0.00041095,31]
[334244724,1722857448488,-500.0,0.00041095,31]
[334244725,1722857448499,-744.2,0.00041095,31]
[334244726,1722857448510,-1086.27,0.00041095,31]
[334244727,1722857448520,-500.0,0.00041095,31]
[334244728,1722857448529,-500.0,0.00041095,31]
[334244729,1722857448539,-937.46,0.00041095,31]
[334244730,1722857448550,-500.0,0.00041095,31]
[334244731,1722857448560,-681.23,0.00041095,31]
[334244732,1722857448570,-500.0,0.00041095,31]
[334244733,1722857448580,-930.57,0.00041095,31]
[334244734,1722857448591,-500.0,0.00041095,31]
[334244735,1722857448607,-699.6,0.00041095,31]
[334244736,1722857448617,-500.0,0.00041095,31]
[334244737,1722857448632,-500.0,0.00041095,31]
[334244738,1722857448643,-500.0,0.00041095,31]
[334244739,1722857448653,-500.0,0.00041095,31]
[334244740,1722857448664,-970.65,0.00041095,31]
[334244741,1722857448678,-300.0,0.00041095,120]
[334244742,1722857448689,-500.0,0.00041095,31]
[334244743,1722857448699,-500.0,0.00041095,31]
[334244744,1722857448709,-527.93,0.00041095,31]
[334244745,1722857448720,-500.0,0.00041095,31]
[334244746,1722857448731,-500.0,0.00041095,31]
[334244747,1722857448741,-516.44845626,0.00041095,31]
[334244748,1722857448751,-678.56,0.00041095,31]
[334244749,1722857448761,-694.73,0.00041095,31]
[334244750,1722857448771,-514.52073945,0.00041095,31]
[334244751,1722857448782,-500.0,0.00041095,31]
[334244752,1722857448793,-550.61264332,0.00041095,31]
[334244753,1722857448803,-500.0,0.00041095,31]
[334244754,1722857448813,-1469.45,0.00041095,31]
[334244755,1722857448824,-500.0,0.00041095,31]
[334244756,1722857448836,-500.0,0.00041095,31]
[334244757,1722857448846,-500.0,0.00041095,31]
[334244758,1722857448858,-500.0,0.00041095,31]
[334244759,1722857448873,-500.0,0.00041095,31]
[334244760,1722857448887,-500.0,0.00041095,31]
[334244761,1722857448899,-331.33096028,0.00041095,31]
[334244762,1722857448909,-253.61457286,0.00041095,31]
[334244763,1722857448920,-500.0,0.00041095,31]
[334244764,1722857448930,-500.0,0.00041095,31]
[334244765,1722857448942,-500.0,0.00041095,31]
[334244766,1722857448952,-500.0,0.00041095,31]
[334244767,1722857448963,-500.0,0.00041095,31]
[334244768,1722857448973,-500.0,0.00041095,31]
[334244769,1722857448984,-500.0,0.00041095,31]
[334244770,1722857448994,-1696.6,0.00041095,31]
[334244771,1722857449005,-1346.69,0.00041095,31]
[334244772,1722857449016,-500.0,0.00041095,31]
[334244773,1722857449028,-500.0,0.00041095,31]
[334244774,1722857449038,-500.0,0.00041095,31]
[334244775,1722857449048,-500.0,0.00041095,31]
[334244776,1722857449058,-506.93995448,0.00041095,31]
[334244777,1722857449068,-505.89657233,0.00041095,31]
[334244778,1722857449078,-1007.11,0.00041095,31]
[334244779,1722857449089,-500.0,0.00041095,31]
[334244780,1722857449100,-500.0,0.00041095,31]
[334244781,1722857449110,-500.0,0.00041095,31]
[334244782,1722857449127,-500.0,0.00041095,31]
[334244783,1722857449138,-500.0,0.00041095,31]
[334244784,1722857449149,-500.0,0.00041095,31]
[334244785,1722857449160,-2461.13,0.00041095,31]
[334244786,1722857449170,-1250.73,0.00041095,31]
[334244787,1722857449180,-500.0,0.00041095,31]
[334244788,1722857449190,-556.88,0.00041095,31]
[334244789,1722857449200,-812.88,0.00041095,31]
[334244790,1722857449210,-500.0,0.00041095,31]
[334244791,1722857449220,-4695.83,0.00041095,31]
[334244792,1722857449231,-500.0,0.00041095,31]
[334244793,1722857449242,-328.13417458,0.00041095,31]
[334244794,1722857449253,-500.0,0.00041095,31]
[334244795,1722857449263,-1520.75,0.00041095,31]
[334244796,1722857449273,-500.0,0.00041095,31]
[334244797,1722857449283,-1135.4,0.00041095,31]
[334244798,1722857449294,-500.0,0.00041095,31]
[334244799,1722857449304,-500.0,0.00041095,31]
[334244800,1722857449314,-550.13,0.00041095,31]
[334244801,1722857449325,-502.66585048,0.00041095,31]
[334244802,1722857449335,-500.0,0.00041095,31]
[334244803,1722857449345,-1006.52,0.00041095,31]
[334244804,1722857449354,-500.0,0.00041095,31]
[334244805,1722857449365,-517.75,0.00041095,31]
[334244806,1722857449384,-943.74,0.00041095,31]
[334244807,1722857449394,-500.0,0.00041095,31]
[334244808,1722857449403,-1202.14,0.00041095,31]
[334244809,1722857449413,-500.0,0.00041095,31]
[334244810,1722857449423,-501.04256428,0.00041095,31]
[334244811,1722857449433,-500.0,0.00041095,31]
[334244812,1722857449443,-979.78,0.00041095,31]
[334244813,1722857449453,-500.0,0.00041095,31]
[334244814,1722857449463,-504.29775778,0.00041095,31]
[334244815,1722857449472,-657.66,0.00041095,31]
[334244816,1722857449482,-500.0,0.00041095,31]
[334244817,1722857449492,-500.0,0.00041095,31]
[334244818,1722857449503,-500.0,0.00041095,2]
[334244819,1722857449513,-1657.05,0.00041095,31]
[334244820,1722857449524,-500.0,0.00041095,31]
[334244821,1722857449535,-12120.82,0.00041095,31]
[334244822,1722857449546,-500.0,0.00041095,31]
[334244823,1722857449556,-630.5743959,0.00041095,31]
[334244824,1722857449567,-2349.69,0.00041095,31]
[334244825,1722857449578,-1301.3,0.00041095,31]
[334244826,1722857449589,-2946.09,0.00041095,21]
[334244827,1722857449605,-733.55,0.00041095,31]
[334244828,1722857449615,-508.0138474,0.00041095,31]
[334244829,1722857449642,-500.0,0.00041095,31]
[334244830,1722857449655,-500.0,0.00041095,31]
[334244831,1722857449667,-500.0,0.00041095,31]
[334244832,1722857449713,-892.96,0.00041095,31]
[334244833,1722857449725,-500.0,0.00041095,31]
[334244834,1722857449736,-1769.88,0.00041095,31]
[334244835,1722857449746,-898.41,0.00041095,31]
[334244836,1722857449756,-768.74,0.00041095,31]
[334244837,1722857449766,-1936.8,0.00041095,31]
[334244838,1722857449776,-500.0,0.00041095,31]
[334244839,1722857449786,-500.0,0.00041095,31]
[334244840,1722857449796,-500.0,0.00041095,31]
[334244841,1722857449806,-2906.96,0.00041095,31]
[334244842,1722857449816,-3090.56,0.00041095,31]
[334244843,1722857449826,-500.0,0.00041095,31]
[334244844,1722857449836,-500.0,0.00041095,31]
[334244845,1722857449846,-654.09,0.00041095,31]
[334244846,1722857449856,-733.41,0.00041095,31]
[334244847,1722857449866,-500.0,0.00041095,31]
[334244848,1722857449887,-505.76,0.00041095,31]
[334244849,1722857449898,-500.0,0.00041095,31]
[334244850,1722857449908,-500.0,0.00041095,31]
[334244851,1722857449918,-500.0,0.00041095,31]
[334244852,1722857449928,-500.0,0.00041095,31]
[334244853,1722857449939,-2356.8,0.00041095,31]
[334244854,1722857449949,-500.0,0.00041095,31]
[334244855,1722857449960,-2356.8,0.00041095,31]
[334244856,1722857449972,-2356.8,0.00041095,31]
[334244857,1722857449982,-2356.8,0.00041095,31]
[334244858,1722857449992,-2356.8,0.00041095,31]
[334244859,1722857450002,-2356.8,0.00041095,31]
[334244860,1722857450012,-2356.8,0.00041095,31]
[334244861,1722857450021,-2356.8,0.00041095,31]
[334244862,1722857450031,-2356.8,0.00041095,31]
[334244863,1722857450041,-500.0,0.00041095,31]
[334244864,1722857450050,-906.23,0.00041095,31]
[334244865,1722857450060,-562.74758183,0.00041095,30]
[334244866,1722857450070,-500.0,0.00041095,31]
[334244867,1722857450080,-500.0,0.00041095,31]
[334244868,1722857450090,-500.0,0.00041095,31]
[334244869,1722857450100,-500.0,0.00041095,31]
[334244870,1722857450109,-500.0,0.00041095,31]
[334244871,1722857450123,-514.34763915,0.00041095,31]
[334244872,1722857450135,-500.0,0.00041095,31]
[334244873,1722857450144,-500.0,0.00041095,31]
[334244874,1722857450154,-500.0,0.00041095,31]
[334244875,1722857450164,-296.61809326,0.00041095,31]
[334244876,1722857450174,-500.0,0.00041095,31]
[334244877,1722857450183,-616.76,0.00041095,31]